[Event "*** Titled Tuesday Blitz"]
[Site "Chess.com"]
[Date "2020.05.12"]
[Round "1"]
[White "Vesper2018"]
[Black "csati17"]
[Result "1-0"]
[WhiteElo "2219"]
[BlackElo "2527"]
[TimeControl "180+1"]
[EndTime "10:07:35 PDT"]
[Termination "Vesper2018 won by resignation"]

1. e4 {[%clk 0:02:58.2]} 1... e6 {[%clk 0:03:00.3]} 2. d4 {[%clk 0:02:57.3]}
2... d5 {[%clk 0:03:00.6]} 3. Nc3 {[%clk 0:02:57.3]} 3... Bb4 {[%clk 0:03:00.6]}
4. e5 {[%clk 0:02:57.3]} 4... Ne7 {[%clk 0:03:01.2]} 5. a3 {[%clk 0:02:54.2]}
5... Bxc3+ {[%clk 0:03:01.6]} 6. bxc3 {[%clk 0:02:54.6]} 6... b6 {[%clk
0:03:02.5]} 7. h4 {[%clk 0:02:51.2]} 7... Ba6 {[%clk 0:03:01.9]} 8. Bxa6 {[%clk
0:02:46.4]} 8... Nxa6 {[%clk 0:03:02.8]} 9. h5 {[%clk 0:02:46.2]} 9... h6 {[%clk
0:03:02.9]} 10. Rh4 {[%clk 0:02:42.6]} 10... Nf5 {[%clk 0:02:40.2]} 11. Rf4
{[%clk 0:02:29.1]} 11... c5 {[%clk 0:02:31.9]} 12. Bd2 {[%clk 0:02:15.3]} 12...
Rc8 {[%clk 0:02:25.3]} 13. Qf3 {[%clk 0:02:12.4]} 13... cxd4 {[%clk 0:02:22.3]}
14. cxd4 {[%clk 0:02:11.9]} 14... Rf8 {[%clk 0:01:35.8]} 15. c3 {[%clk
0:02:06.5]} 15... Qd7 {[%clk 0:01:31.4]} 16. Ne2 {[%clk 0:01:44.2]} 16... Nb8
{[%clk 0:01:25.3]} 17. g4 {[%clk 0:01:20]} 17... Ne7 {[%clk 0:01:24.1]} 18. Qd3
{[%clk 0:01:19.3]} 18... Nbc6 {[%clk 0:01:08.8]} 19. Qh7 {[%clk 0:01:15.8]}
19... Rg8 {[%clk 0:01:08.6]} 20. g5 {[%clk 0:00:34.5]} 20... hxg5 {[%clk
0:01:02.4]} 21. Rg4 {[%clk 0:00:34.8]} 21... Na5 {[%clk 0:00:27]} 22. Rxg5
{[%clk 0:00:34.9]} 22... Nb3 {[%clk 0:00:27.2]} 23. Rd1 {[%clk 0:00:34.2]} 23...
Nxd2 {[%clk 0:00:24.5]} 24. Rxd2 {[%clk 0:00:33.8]} 24... g6 {[%clk 0:00:20.1]}
25. hxg6 {[%clk 0:00:23.5]} 25... fxg6 {[%clk 0:00:21]} 26. Qh3 {[%clk
0:00:19.6]} 26... Qc6 {[%clk 0:00:17.2]} 27. Rd3 {[%clk 0:00:18.5]} 27... Kd7
{[%clk 0:00:16.7]} 28. Nf4 {[%clk 0:00:18.2]} 28... Rcf8 {[%clk 0:00:16.6]} 29.
Qg4 {[%clk 0:00:14.2]} 29... Rf5 {[%clk 0:00:14.7]} 30. Rh3 {[%clk 0:00:11.1]}
30... Rxg5 {[%clk 0:00:14.2]} 31. Qxg5 {[%clk 0:00:11.4]} 31... Re8 {[%clk
0:00:13.5]} 32. Kd2 {[%clk 0:00:10.5]} 32... Kc8 {[%clk 0:00:11.7]} 33. Rh7
{[%clk 0:00:09.9]} 33... Qb5 {[%clk 0:00:09.7]} 34. Rxe7 {[%clk 0:00:08.8]}
34... Qb2+ {[%clk 0:00:09.8]} 35. Ke3 {[%clk 0:00:08.6]} 35... Qxc3+ {[%clk
0:00:10]} 36. Nd3 {[%clk 0:00:08.9]} 36... Rxe7 {[%clk 0:00:08.3]} 37. Qxe7
{[%clk 0:00:09.1]} 37... Qc6 {[%clk 0:00:09.2]} 38. Qf8+ {[%clk 0:00:08.9]}
38... Kb7 {[%clk 0:00:09.7]} 39. Qf7+ {[%clk 0:00:09.4]} 39... Qc7 {[%clk
0:00:09.6]} 40. Qxe6 {[%clk 0:00:08.9]} 40... Qc4 {[%clk 0:00:09.2]} 41. Qd7+
{[%clk 0:00:08.8]} 41... Ka6 {[%clk 0:00:09.6]} 42. e6 {[%clk 0:00:08.4]} 1-0

[Event "*** Titled Tuesday Blitz"]
[Site "Chess.com"]
[Date "2020.05.12"]
[Round "1"]
[White "Shoytan"]
[Black "Susal_De_Silva"]
[Result "1-0"]
[WhiteElo "2572"]
[BlackElo "2238"]
[TimeControl "180+1"]
[EndTime "10:07:36 PDT"]
[Termination "Shoytan won by resignation"]

1. d4 {[%clk 0:03:00.2]} 1... Nf6 {[%clk 0:02:59.7]} 2. c4 {[%clk 0:02:58]} 2...
e6 {[%clk 0:02:59.4]} 3. g3 {[%clk 0:02:56.1]} 3... b6 {[%clk 0:02:57.3]} 4. Bg2
{[%clk 0:02:55.6]} 4... d5 {[%clk 0:02:57.2]} 5. Nf3 {[%clk 0:02:54.2]} 5... Bb7
{[%clk 0:02:57]} 6. O-O {[%clk 0:02:48.8]} 6... Be7 {[%clk 0:02:54.1]} 7. Nc3
{[%clk 0:02:46.7]} 7... O-O {[%clk 0:02:53.2]} 8. cxd5 {[%clk 0:02:45.7]} 8...
exd5 {[%clk 0:02:52.3]} 9. Bg5 {[%clk 0:02:33.3]} 9... Nbd7 {[%clk 0:02:51.2]}
10. Ne5 {[%clk 0:02:31.1]} 10... Nxe5 {[%clk 0:02:26.8]} 11. dxe5 {[%clk
0:02:28.5]} 11... Ne4 {[%clk 0:02:26.5]} 12. Bxe7 {[%clk 0:02:25.9]} 12... Qxe7
{[%clk 0:02:27.4]} 13. Qd4 {[%clk 0:01:54.6]} 13... Rad8 {[%clk 0:01:57]} 14.
Nxd5 {[%clk 0:01:36.6]} 14... Bxd5 {[%clk 0:01:53]} 15. Bxe4 {[%clk 0:01:35.5]}
15... c5 {[%clk 0:01:45.7]} 16. Qd3 {[%clk 0:01:27.6]} 16... Qxe5 {[%clk
0:01:33.2]} 17. Bxh7+ {[%clk 0:01:18.2]} 17... Kh8 {[%clk 0:01:31.4]} 18. Qf5
{[%clk 0:01:18.7]} 18... Qxe2 {[%clk 0:01:20]} 19. Qh3 {[%clk 0:01:17.8]} 19...
Qe6 {[%clk 0:01:05.2]} 20. Bf5+ {[%clk 0:01:09.9]} 20... Qh6 {[%clk 0:01:05]}
21. Qxh6+ {[%clk 0:01:10.3]} 21... gxh6 {[%clk 0:01:05.9]} 22. Bg4 {[%clk
0:01:00.5]} 22... Kg7 {[%clk 0:01:04.6]} 23. Rfd1 {[%clk 0:00:58.3]} 23... Bb7
{[%clk 0:01:03.5]} 24. f4 {[%clk 0:00:54.8]} 24... Rfe8 {[%clk 0:01:00.3]} 25.
Kf2 {[%clk 0:00:54.1]} 25... Kg6 {[%clk 0:00:53.5]} 26. Be2 {[%clk 0:00:48.1]}
26... Kf6 {[%clk 0:00:49.7]} 27. Bb5 {[%clk 0:00:44.9]} 27... Rf8 {[%clk
0:00:49.3]} 28. g4 {[%clk 0:00:41.6]} 28... a6 {[%clk 0:00:42.1]} 29. Bd7 {[%clk
0:00:38.6]} 29... Ke7 {[%clk 0:00:39.4]} 30. Bf5 {[%clk 0:00:38.3]} 30... Bc8
{[%clk 0:00:35.2]} 31. Bxc8 {[%clk 0:00:37.1]} 31... Rxc8 {[%clk 0:00:36.1]} 32.
Re1+ {[%clk 0:00:37.2]} 32... Kf6 {[%clk 0:00:35.3]} 33. h4 {[%clk 0:00:37.6]}
33... Rfd8 {[%clk 0:00:33.9]} 34. Rad1 {[%clk 0:00:36]} 34... b5 {[%clk
0:00:22.8]} 35. g5+ {[%clk 0:00:35.4]} 35... hxg5 {[%clk 0:00:22.6]} 36. hxg5+
{[%clk 0:00:36.3]} 36... Kg7 {[%clk 0:00:19.3]} 37. Kf3 {[%clk 0:00:36.6]} 37...
c4 {[%clk 0:00:19.2]} 38. f5 {[%clk 0:00:35.8]} 38... Rxd1 {[%clk 0:00:19.2]}
39. Rxd1 {[%clk 0:00:35.8]} 39... c3 {[%clk 0:00:20.1]} 40. bxc3 {[%clk
0:00:32.9]} 40... Rxc3+ {[%clk 0:00:20.7]} 41. Ke4 {[%clk 0:00:32.7]} 41... Rc2
{[%clk 0:00:19.5]} 42. Rd7 {[%clk 0:00:32.3]} 42... Kg8 {[%clk 0:00:15.7]} 43.
Ke5 {[%clk 0:00:30.4]} 43... Rxa2 {[%clk 0:00:13]} 44. Kf6 {[%clk 0:00:30.2]}
44... Rc2 {[%clk 0:00:12.8]} 45. Rd8+ {[%clk 0:00:29.4]} 45... Kh7 {[%clk
0:00:13.2]} 46. g6+ {[%clk 0:00:29.5]} 1-0

[Event "*** Titled Tuesday Blitz"]
[Site "Chess.com"]
[Date "2020.05.12"]
[Round "1"]
[White "Firehand33"]
[Black "slowdgehammer"]
[Result "1-0"]
[WhiteElo "2717"]
[BlackElo "2376"]
[TimeControl "180+1"]
[EndTime "10:07:37 PDT"]
[Termination "Firehand33 won by checkmate"]

1. b3 {[%clk 0:02:58.7]} 1... e5 {[%clk 0:02:59.7]} 2. Bb2 {[%clk 0:02:59.6]}
2... Nc6 {[%clk 0:02:59.9]} 3. e3 {[%clk 0:03:00.2]} 3... Bd6 {[%clk 0:02:59.6]}
4. Nf3 {[%clk 0:02:59.7]} 4... a6 {[%clk 0:02:57.6]} 5. d3 {[%clk 0:02:59.4]}
5... Nf6 {[%clk 0:02:56.9]} 6. Nbd2 {[%clk 0:03:00]} 6... O-O {[%clk 0:02:57.1]}
7. Nc4 {[%clk 0:03:00.3]} 7... Re8 {[%clk 0:02:48.1]} 8. Nxd6 {[%clk 0:03:00]}
8... cxd6 {[%clk 0:02:49]} 9. Be2 {[%clk 0:02:59.5]} 9... d5 {[%clk 0:02:46.6]}
10. Kf1 {[%clk 0:02:59.9]} 10... d6 {[%clk 0:02:46.4]} 11. h3 {[%clk 0:02:58.9]}
11... h6 {[%clk 0:02:44]} 12. Kg1 {[%clk 0:02:58.4]} 12... Nh7 {[%clk
0:02:37.2]} 13. Kh2 {[%clk 0:02:58.2]} 13... Ng5 {[%clk 0:02:37.8]} 14. Nd2
{[%clk 0:02:46.9]} 14... Qf6 {[%clk 0:02:36.3]} 15. f4 {[%clk 0:02:40.2]} 15...
Ne6 {[%clk 0:02:35.1]} 16. Rf1 {[%clk 0:02:38.1]} 16... Qe7 {[%clk 0:02:34.5]}
17. f5 {[%clk 0:02:35.8]} 17... Nf8 {[%clk 0:02:33.7]} 18. f6 {[%clk 0:02:27.9]}
18... gxf6 {[%clk 0:02:33.1]} 19. Bg4 {[%clk 0:02:19.8]} 19... Ng6 {[%clk
0:02:30.7]} 20. Bxc8 {[%clk 0:02:12.2]} 20... Raxc8 {[%clk 0:02:30]} 21. Qh5
{[%clk 0:02:12.8]} 21... Kh7 {[%clk 0:01:57.6]} 22. a3 {[%clk 0:02:12.4]} 22...
Nb8 {[%clk 0:01:54.9]} 23. c4 {[%clk 0:02:10.5]} 23... dxc4 {[%clk 0:01:52.8]}
24. Ne4 {[%clk 0:02:05.5]} 24... Nd7 {[%clk 0:01:50.1]} 25. dxc4 {[%clk
0:01:59.2]} 25... b5 {[%clk 0:01:46.2]} 26. Rad1 {[%clk 0:01:57.9]} 26... Rc6
{[%clk 0:01:42.7]} 27. cxb5 {[%clk 0:01:34.7]} 27... axb5 {[%clk 0:01:43.6]} 28.
Ng3 {[%clk 0:01:28.2]} 28... Rg8 {[%clk 0:01:41.5]} 29. Nf5 {[%clk 0:01:27.4]}
29... Qf8 {[%clk 0:01:42.2]} 30. Bc1 {[%clk 0:01:26.4]} 30... Rc2 {[%clk
0:01:34]} 31. Rxd6 {[%clk 0:01:21.1]} 31... Rxg2+ {[%clk 0:01:28.5]} 32. Kh1
{[%clk 0:01:18.4]} 32... Rg5 {[%clk 0:01:24.1]} 33. Qxh6+ {[%clk 0:01:11]} 33...
Qxh6 {[%clk 0:01:23.4]} 34. Nxh6 {[%clk 0:01:11.3]} 34... Kxh6 {[%clk
0:01:19.5]} 35. e4 {[%clk 0:01:00]} 35... Nf4 {[%clk 0:01:13.9]} 36. Rxd7 {[%clk
0:00:55.3]} 36... Kg6 {[%clk 0:00:54.4]} 37. Be3 {[%clk 0:00:54.5]} 37... Rg3
{[%clk 0:00:42.2]} 38. Bxf4 {[%clk 0:00:55.4]} 38... exf4 {[%clk 0:00:40.8]} 39.
Rxf4 {[%clk 0:00:48.9]} 39... Rh8 {[%clk 0:00:33.8]} 40. h4 {[%clk 0:00:46.3]}
40... Rxb3 {[%clk 0:00:19.4]} 41. Rd6 {[%clk 0:00:43.1]} 41... Rb1+ {[%clk
0:00:10.6]} 42. Kg2 {[%clk 0:00:42.5]} 42... Rb2+ {[%clk 0:00:11.3]} 43. Kg3
{[%clk 0:00:41.4]} 43... Rb3+ {[%clk 0:00:11.9]} 44. Kg4 {[%clk 0:00:41.4]}
44... Rf8 {[%clk 0:00:11.6]} 45. Rdxf6+ {[%clk 0:00:40.5]} 45... Kg7 {[%clk
0:00:12.3]} 46. e5 {[%clk 0:00:39.3]} 46... Rxa3 {[%clk 0:00:12.2]} 47. e6
{[%clk 0:00:39.6]} 47... Ra7 {[%clk 0:00:11.5]} 48. h5 {[%clk 0:00:38]} 48...
Re7 {[%clk 0:00:11.3]} 49. h6+ {[%clk 0:00:37.9]} 49... Kh7 {[%clk 0:00:11.7]}
50. Rxf7+ {[%clk 0:00:35.6]} 50... Rfxf7 {[%clk 0:00:11.7]} 51. Rxf7+ {[%clk
0:00:35.5]} 51... Rxf7 {[%clk 0:00:09.6]} 52. exf7 {[%clk 0:00:36.4]} 52... b4
{[%clk 0:00:02.1]} 53. f8=Q {[%clk 0:00:36.2]} 53... Kg6 {[%clk 0:00:03]} 54.
Qg7# {[%clk 0:00:36]} 1-0

[Event "*** Titled Tuesday Blitz"]
[Site "Chess.com"]
[Date "2020.05.12"]
[Round "1"]
[White "grunbergmihai"]
[Black "praveenb2002"]
[Result "1-0"]
[WhiteElo "2403"]
[BlackElo "2721"]
[TimeControl "180+1"]
[EndTime "10:07:38 PDT"]
[Termination "grunbergmihai won by resignation"]

1. Nf3 {[%clk 0:03:00.9]} 1... d5 {[%clk 0:02:55.4]} 2. c4 {[%clk 0:03:00.7]}
2... d4 {[%clk 0:02:55.4]} 3. g3 {[%clk 0:02:59.8]} 3... Nc6 {[%clk 0:02:53.7]}
4. Bg2 {[%clk 0:02:59.6]} 4... e5 {[%clk 0:02:53.8]} 5. d3 {[%clk 0:02:59.9]}
5... Bb4+ {[%clk 0:02:53]} 6. Bd2 {[%clk 0:02:59.7]} 6... a5 {[%clk 0:02:53]} 7.
O-O {[%clk 0:02:59.1]} 7... Nf6 {[%clk 0:02:52.2]} 8. a3 {[%clk 0:02:58.5]} 8...
Be7 {[%clk 0:02:41.6]} 9. e3 {[%clk 0:02:57.4]} 9... O-O {[%clk 0:02:40.4]} 10.
exd4 {[%clk 0:02:57.1]} 10... exd4 {[%clk 0:02:39.9]} 11. Bg5 {[%clk 0:02:53.6]}
11... Bf5 {[%clk 0:02:38.7]} 12. Qc2 {[%clk 0:02:50.2]} 12... h6 {[%clk
0:02:39]} 13. Bxf6 {[%clk 0:02:49.4]} 13... Bxf6 {[%clk 0:02:38.8]} 14. Nbd2
{[%clk 0:02:50]} 14... Re8 {[%clk 0:02:38.2]} 15. Rfe1 {[%clk 0:02:49.3]} 15...
Qd7 {[%clk 0:02:37.8]} 16. c5 {[%clk 0:02:36.1]} 16... Rxe1+ {[%clk 0:02:30.5]}
17. Rxe1 {[%clk 0:02:35.5]} 17... Re8 {[%clk 0:02:31.2]} 18. Rxe8+ {[%clk
0:02:35]} 18... Qxe8 {[%clk 0:02:32.1]} 19. Ne4 {[%clk 0:02:23.2]} 19... Bxe4
{[%clk 0:02:03.8]} 20. dxe4 {[%clk 0:02:22.7]} 20... d3 {[%clk 0:02:04.7]} 21.
Qxd3 {[%clk 0:02:21.5]} 21... Bxb2 {[%clk 0:02:04.9]} 22. Nd2 {[%clk 0:02:18.8]}
22... Qe5 {[%clk 0:01:42.7]} 23. Nc4 {[%clk 0:02:15.6]} 23... Qd4 {[%clk
0:01:42.9]} 24. Qxd4 {[%clk 0:02:07.5]} 24... Bxd4 {[%clk 0:01:43.8]} 25. e5
{[%clk 0:02:07.2]} 25... Bxc5 {[%clk 0:01:25.4]} 26. Bxc6 {[%clk 0:02:06.3]}
26... bxc6 {[%clk 0:01:26.3]} 27. Nxa5 {[%clk 0:02:06]} 27... Bxa3 {[%clk
0:01:26.7]} 28. Nxc6 {[%clk 0:02:06]} 28... Kf8 {[%clk 0:01:26.4]} 29. f4 {[%clk
0:01:56.6]} 29... Ke8 {[%clk 0:01:26.6]} 30. Kg2 {[%clk 0:01:56.1]} 30... Kd7
{[%clk 0:01:26.7]} 31. Nd4 {[%clk 0:01:55.7]} 31... g6 {[%clk 0:01:24.4]} 32.
Kf3 {[%clk 0:01:55.3]} 32... c5 {[%clk 0:01:24.4]} 33. Nc2 {[%clk 0:01:55]}
33... Bb4 {[%clk 0:01:16.2]} 34. Ke4 {[%clk 0:01:54.3]} 34... Kc6 {[%clk
0:01:13.1]} 35. g4 {[%clk 0:01:50.2]} 35... Ba5 {[%clk 0:01:06.2]} 36. Ne3
{[%clk 0:01:47.4]} 36... Bd8 {[%clk 0:01:02.1]} 37. Nc4 {[%clk 0:01:46.4]} 37...
Bh4 {[%clk 0:00:58.2]} 38. f5 {[%clk 0:01:46]} 38... gxf5+ {[%clk 0:00:58]} 39.
gxf5 {[%clk 0:01:45.8]} 39... Be7 {[%clk 0:00:41.6]} 40. h3 {[%clk 0:01:43.9]}
40... Bg5 {[%clk 0:00:33]} 41. e6 {[%clk 0:01:35.4]} 41... fxe6 {[%clk
0:00:32.7]} 42. fxe6 {[%clk 0:01:35.4]} 42... Be7 {[%clk 0:00:32.7]} 43. Ke5
{[%clk 0:01:25.7]} 43... Bh4 {[%clk 0:00:28.8]} 44. Ne3 {[%clk 0:01:23.6]} 44...
Bg5 {[%clk 0:00:15.7]} 45. Nd5 {[%clk 0:01:18.4]} 45... c4 {[%clk 0:00:14.8]}
46. Nf6 {[%clk 0:01:00.6]} 46... Bf4+ {[%clk 0:00:10.9]} 47. Kxf4 {[%clk
0:00:45.2]} 47... Kd6 {[%clk 0:00:11.2]} 48. Ng4 {[%clk 0:00:43.3]} 48... Kxe6
{[%clk 0:00:11]} 49. Nxh6 {[%clk 0:00:42.7]} 49... c3 {[%clk 0:00:09.4]} 50. Ke3
{[%clk 0:00:42.5]} 50... Kf6 {[%clk 0:00:09.1]} 51. Kd3 {[%clk 0:00:41.8]} 51...
Kg5 {[%clk 0:00:09.5]} 52. Ng4 {[%clk 0:00:41.5]} 52... Kh4 {[%clk 0:00:10.2]}
53. Nf2 {[%clk 0:00:41.2]} 53... Kg3 {[%clk 0:00:10.8]} 54. Kxc3 {[%clk
0:00:41.1]} 54... Kxf2 {[%clk 0:00:11.3]} 55. h4 {[%clk 0:00:40.9]} 1-0

[Event "*** Titled Tuesday Blitz"]
[Site "Chess.com"]
[Date "2020.05.12"]
[Round "1"]
[White "ristingho"]
[Black "Belka1989"]
[Result "1-0"]
[WhiteElo "2501"]
[BlackElo "2091"]
[TimeControl "180+1"]
[EndTime "10:07:38 PDT"]
[Termination "ristingho won by resignation"]

1. d4 {[%clk 0:02:59.9]} 1... Nf6 {[%clk 0:02:58.7]} 2. c4 {[%clk 0:02:58.1]}
2... e5 {[%clk 0:02:58.9]} 3. dxe5 {[%clk 0:02:52.7]} 3... Ng4 {[%clk
0:02:59.3]} 4. Bf4 {[%clk 0:02:50.8]} 4... Bb4+ {[%clk 0:02:59.2]} 5. Nd2 {[%clk
0:02:50.2]} 5... Nc6 {[%clk 0:02:59.6]} 6. Nf3 {[%clk 0:02:49.7]} 6... Qe7
{[%clk 0:03:00]} 7. a3 {[%clk 0:02:49.4]} 7... Ngxe5 {[%clk 0:02:59.3]} 8. Nxe5
{[%clk 0:02:47]} 8... Nxe5 {[%clk 0:03:00.2]} 9. e3 {[%clk 0:02:47.4]} 9...
Bxd2+ {[%clk 0:03:00]} 10. Qxd2 {[%clk 0:02:48.3]} 10... d6 {[%clk 0:02:58.5]}
11. Be2 {[%clk 0:02:46.9]} 11... b6 {[%clk 0:02:58.9]} 12. O-O {[%clk
0:02:44.3]} 12... Bb7 {[%clk 0:02:56.5]} 13. b4 {[%clk 0:02:42.3]} 13... O-O
{[%clk 0:02:55]} 14. Rac1 {[%clk 0:02:36.3]} 14... Nd7 {[%clk 0:02:55.1]} 15.
Qd4 {[%clk 0:02:17.3]} 15... f5 {[%clk 0:02:31.5]} 16. Rfe1 {[%clk 0:02:12.6]}
16... a5 {[%clk 0:01:20.5]} 17. h3 {[%clk 0:02:05.9]} 17... axb4 {[%clk
0:01:16.8]} 18. axb4 {[%clk 0:02:06.8]} 18... h6 {[%clk 0:01:14.9]} 19. Ra1
{[%clk 0:01:55]} 19... g5 {[%clk 0:01:14]} 20. Bg3 {[%clk 0:01:48.1]} 20... Rfe8
{[%clk 0:01:13]} 21. Bd3 {[%clk 0:01:43.4]} 21... f4 {[%clk 0:00:42.6]} 22. Bh2
{[%clk 0:01:23.6]} 22... Qe5 {[%clk 0:00:42]} 23. Rxa8 {[%clk 0:00:51.1]} 23...
Bxa8 {[%clk 0:00:33.6]} 24. Ra1 {[%clk 0:00:47.7]} 24... Qxd4 {[%clk 0:00:16.5]}
25. exd4 {[%clk 0:00:48.6]} 25... Be4 {[%clk 0:00:15.8]} 26. Bf1 {[%clk
0:00:43.3]} 26... Nf8 {[%clk 0:00:07.8]} 27. d5 {[%clk 0:00:30.3]} 27... Bf5
{[%clk 0:00:03.7]} 28. h4 {[%clk 0:00:27.1]} 28... Ng6 {[%clk 0:00:03.5]} 29.
hxg5 {[%clk 0:00:26.3]} 29... hxg5 {[%clk 0:00:04.4]} 30. g3 {[%clk 0:00:26.2]}
30... fxg3 {[%clk 0:00:04]} 31. Bxg3 {[%clk 0:00:25.2]} 31... Ne5 {[%clk
0:00:04.9]} 32. f4 {[%clk 0:00:16.3]} 32... gxf4 {[%clk 0:00:04.2]} 33. Bxf4
{[%clk 0:00:17.2]} 33... Nd3 {[%clk 0:00:03.1]} 34. Bg3 {[%clk 0:00:13.3]} 34...
Re3 {[%clk 0:00:01.8]} 35. Kh2 {[%clk 0:00:10.8]} 35... Re7 {[%clk 0:00:01.1]}
36. b5 {[%clk 0:00:08.3]} 36... Rh7+ {[%clk 0:00:02]} 37. Kg1 {[%clk 0:00:08.3]}
37... Re7 {[%clk 0:00:02.6]} 38. Ra8+ {[%clk 0:00:07.4]} 38... Kf7 {[%clk
0:00:02.5]} 39. Ra3 {[%clk 0:00:08.3]} 39... Nc5 {[%clk 0:00:02.4]} 40. Rf3
{[%clk 0:00:08]} 40... Kg6 {[%clk 0:00:03.1]} 41. Bh4 {[%clk 0:00:08]} 41... Be4
{[%clk 0:00:03.5]} 42. Rg3+ {[%clk 0:00:07.4]} 42... Kh5 {[%clk 0:00:03.8]} 43.
Bxe7 {[%clk 0:00:08.3]} 1-0

[Event "*** Titled Tuesday Blitz"]
[Site "Chess.com"]
[Date "2020.05.12"]
[Round "1"]
[White "26andrej26"]
[Black "Hikaru"]
[Result "0-1"]
[WhiteElo "2465"]
[BlackElo "3245"]
[TimeControl "180+1"]
[EndTime "10:07:40 PDT"]
[Termination "Hikaru won by resignation"]

1. e4 {[%clk 0:03:00.8]} 1... c6 {[%clk 0:02:57.7]} 2. d4 {[%clk 0:03:00.4]}
2... d5 {[%clk 0:02:58.6]} 3. Nc3 {[%clk 0:03:00.4]} 3... dxe4 {[%clk
0:02:58.1]} 4. Nxe4 {[%clk 0:03:01.3]} 4... Nf6 {[%clk 0:02:58.9]} 5. Nxf6+
{[%clk 0:03:01.5]} 5... gxf6 {[%clk 0:02:59.3]} 6. c3 {[%clk 0:03:01]} 6... Bf5
{[%clk 0:02:58.9]} 7. Bd3 {[%clk 0:03:00]} 7... Bg6 {[%clk 0:02:58.5]} 8. Ne2
{[%clk 0:02:57.4]} 8... e6 {[%clk 0:02:57.4]} 9. Nf4 {[%clk 0:02:57.3]} 9... Bd6
{[%clk 0:02:57.1]} 10. Nxg6 {[%clk 0:02:55.5]} 10... hxg6 {[%clk 0:02:55.9]} 11.
Qe2 {[%clk 0:02:48.7]} 11... Nd7 {[%clk 0:02:54.4]} 12. Bd2 {[%clk 0:02:36.7]}
12... Qc7 {[%clk 0:02:48.7]} 13. h4 {[%clk 0:02:33.9]} 13... O-O-O {[%clk
0:02:48.3]} 14. g3 {[%clk 0:02:33.4]} 14... c5 {[%clk 0:02:45.7]} 15. Be3 {[%clk
0:02:20]} 15... cxd4 {[%clk 0:02:38.2]} 16. cxd4 {[%clk 0:02:17.7]} 16... Kb8
{[%clk 0:02:36]} 17. a3 {[%clk 0:02:14.3]} 17... Qc6 {[%clk 0:02:29.9]} 18. Rh2
{[%clk 0:02:06.9]} 18... Nb6 {[%clk 0:02:25.9]} 19. Rc1 {[%clk 0:02:04.4]} 19...
Qd5 {[%clk 0:02:24.4]} 20. Kf1 {[%clk 0:02:00.1]} 20... Rc8 {[%clk 0:02:01.1]}
21. Rd1 {[%clk 0:01:57.6]} 21... Qb3 {[%clk 0:01:57.2]} 22. h5 {[%clk 0:01:37]}
22... Nd5 {[%clk 0:01:52.6]} 23. Bc1 {[%clk 0:01:33.5]} 23... f5 {[%clk
0:01:48.5]} 24. Kg1 {[%clk 0:01:30.9]} 24... f4 {[%clk 0:01:48.2]} 25. h6 {[%clk
0:01:14.9]} 25... fxg3 {[%clk 0:01:46.2]} 26. Rh4 {[%clk 0:01:09.9]} 26... gxf2+
{[%clk 0:01:44.8]} 27. Kxf2 {[%clk 0:01:10]} 27... Rxc1 {[%clk 0:01:34.2]} 28.
Rxc1 {[%clk 0:01:07.9]} 28... Nf4 {[%clk 0:01:34.5]} 29. Rxf4 {[%clk 0:01:07.2]}
29... Bxf4 {[%clk 0:01:34.1]} 30. Rc4 {[%clk 0:00:46.3]} 30... Rxh6 {[%clk
0:01:26.6]} 31. Qe4 {[%clk 0:00:41]} 31... Bd6 {[%clk 0:01:17.4]} 32. Rb4 {[%clk
0:00:38.6]} 32... Bxb4 {[%clk 0:01:15.1]} 33. Qf4+ {[%clk 0:00:37.3]} 33... Kc8
{[%clk 0:01:12.9]} 34. Qxh6 {[%clk 0:00:37.2]} 34... Qxd3 {[%clk 0:01:11.8]} 35.
Qh8+ {[%clk 0:00:37.2]} 35... Kd7 {[%clk 0:01:11.8]} 36. axb4 {[%clk 0:00:37.5]}
36... Qd2+ {[%clk 0:01:12.4]} 37. Kf3 {[%clk 0:00:37.2]} 37... Qxb4 {[%clk
0:01:13]} 38. Qf6 {[%clk 0:00:32.2]} 38... Qe7 {[%clk 0:01:11.9]} 39. Qe5 {[%clk
0:00:32.1]} 39... Qd6 {[%clk 0:01:10.8]} 40. Qf6 {[%clk 0:00:31.7]} 40... Qd5+
{[%clk 0:01:10.6]} 41. Ke3 {[%clk 0:00:28.7]} 41... Qf5 {[%clk 0:01:09.9]} 42.
Qh8 {[%clk 0:00:28.7]} 42... g5 {[%clk 0:01:07.9]} 43. Qa8 {[%clk 0:00:26.2]}
43... Qb5 {[%clk 0:01:06.4]} 44. Qf8 {[%clk 0:00:21.1]} 44... Qb3+ {[%clk
0:01:04.7]} 45. Ke4 {[%clk 0:00:20.4]} 45... f5+ {[%clk 0:01:00.6]} 46. Ke5
{[%clk 0:00:20.8]} 46... Qd5+ {[%clk 0:01:01.1]} 47. Kf6 {[%clk 0:00:21.1]}
47... Qxd4+ {[%clk 0:01:01.7]} 48. Kxg5 {[%clk 0:00:21.8]} 48... Qd6 {[%clk
0:00:59.6]} 49. Qa8 {[%clk 0:00:19.6]} 49... Qe7+ {[%clk 0:00:58]} 50. Kf4
{[%clk 0:00:18.9]} 50... Qb4+ {[%clk 0:00:57.9]} 51. Kg5 {[%clk 0:00:17.8]}
51... a6 {[%clk 0:00:58.8]} 52. Qh8 {[%clk 0:00:14.8]} 52... Qe7+ {[%clk
0:00:58]} 53. Kf4 {[%clk 0:00:14.9]} 53... Qd6+ {[%clk 0:00:58.4]} 54. Kg5
{[%clk 0:00:15.3]} 54... Kc6 {[%clk 0:00:59.2]} 55. Qc8+ {[%clk 0:00:13.8]}
55... Kb5 {[%clk 0:00:58.9]} 56. Kf6 {[%clk 0:00:13.2]} 56... f4 {[%clk
0:00:58.5]} 57. Qc3 {[%clk 0:00:10.2]} 57... e5+ {[%clk 0:00:53.8]} 58. Kf5
{[%clk 0:00:10.5]} 58... Qd4 {[%clk 0:00:53.5]} 59. Qb3+ {[%clk 0:00:09.2]}
59... Kc6 {[%clk 0:00:54]} 60. Qe6+ {[%clk 0:00:07.3]} 60... Kc7 {[%clk
0:00:54.3]} 61. Qe7+ {[%clk 0:00:06]} 61... Qd7+ {[%clk 0:00:53.4]} 62. Qxd7+
{[%clk 0:00:06.9]} 0-1